fUSD/lending_fUSD_20250530
["ID","MTS","AMOUNT","RATE_DAILY","PERIOD"]
[363220817,1748627457341,-560.56913432,0.00022465,2]
[363220818,1748627457350,-170.3644901,0.00022465,2]
[363220819,1748627457359,-160.2711382,0.00022473,2]
[363220820,1748627457368,-150.0,0.00022475,2]
[363220821,1748627457378,-5348.85073308,0.000225,2]
[363220822,1748627457388,-7488.83,0.000225,2]
[363220823,1748627457398,-1000.0,0.00022521,2]
[363220824,1748627457407,-532.03377022,0.00022521,2]
[363220825,1748627457417,-502.00374054,0.00022521,2]
[363220826,1748627457426,-1000.0,0.00022521,2]
[363220827,1748627457436,-1000.0,0.00022521,2]
[363220828,1748627457446,-1000.0,0.00022521,2]
[363220829,1748627457455,-1000.0,0.00022521,2]
[363220830,1748627457465,-503.06153334,0.00022521,2]
[363220831,1748627457474,-150.0,0.00022523,2]
[363220832,1748627457486,-150.0,0.00022539,2]
[363220833,1748627457496,-1507.988674,0.0002254,3]
[363220834,1748627457508,-1000.0,0.0002256,2]
[363220835,1748627457517,-156.59142641,0.00022594,2]
[363220836,1748627457527,-151.0,0.00022594,2]
[363220837,1748627457536,-150.0,0.00022617,2]
[363220838,1748627457550,-167.2481227,0.00022643,2]
[363220839,1748627457560,-506.98039416,0.0002271,2]
[363220840,1748627457570,-7070.6097284,0.00022735,2]
[363220841,1748627457579,-300.0,0.00022738,2]
[363220842,1748627457590,-300.0,0.00022738,2]
[363220843,1748627457599,-398.68849591,0.00022739,2]
[363220844,1748627457608,-914564.03438759,0.00022739,2]
[363220845,1748627458347,-735.1582557,0.00022739,2]
[363220846,1748627458359,-567.04419681,0.00022739,2]
[363220847,1748627458386,-254.36,0.00022739,2]
[363220848,1748627458488,-2656.80088851,0.00022739,2]
[363220849,1748627459454,-637.69785001,0.00022739,2]
[363220850,1748627460050,-344.8849108,0.00022091,2]
[363220851,1748627460063,-884.1833,0.00022091,2]
[363220852,1748627460076,-219.51804918,0.00022091,2]
[363220853,1748627460086,-393.33986417,0.00022739,2]
[363220854,1748627460102,-4006.16203557,0.00022739,2]
[363220873,1748627918634,250.0,0.00015,2]
[363220874,1748627920122,300.0,0.00017,2]
[363220875,1748627920957,350.0,0.00019,2]
[363220878,1748627978709,150.0,0.00019,2]
[363220880,1748627995263,150.0,0.00019,2]
[363220882,1748628004836,182.92,0.00016647,2]
[363220883,1748628032398,200.42,0.00019,2]
[363220888,1748628142165,1033.95,0.00018737,2]
[363220900,1748628339121,301.3,0.00013699,2]
[363220905,1748628484040,173.31,0.00019178,2]
[363220912,1748628547141,-3237.408628,0.00019848,2]
[363220913,1748628547163,-200.0,0.00019949,2]
[363220914,1748628547183,-200.76,0.00019999,2]
[363220915,1748628547202,-151.0,0.00019999,2]
[363220916,1748628547222,-200.0,0.00020144,2]
[363220917,1748628547248,-301.3,0.00020187,2]
[363220918,1748628555648,-1000.0,0.00020234,2]
[363220919,1748628555670,-300.0,0.00020329,2]
[363220920,1748628555692,-23900.0,0.0002033,2]
[363220921,1748628555713,-1600.0,0.00020443,2]
[363220922,1748628556994,2751.0,0.0002025,2]
[363220937,1748628632021,-200.0,0.0002048,2]
[363220938,1748628632030,-4856.78,0.00020488,2]
[363220939,1748628632040,-200.0,0.0002053,2]
[363220940,1748628632049,-1952.43676404,0.00020533,2]
[363220941,1748628632073,-47.56323596,0.00020533,2]
[363220942,1748628632083,-156.587,0.00020547,2]
[363220943,1748628632093,-238.89,0.00020609,2]
[363220944,1748628632103,-165.38,0.00020885,2]
[363220945,1748628632112,-1.83986403,0.0002096,2]
[363221427,1748628637922,-352.16054802,0.0002096,2]
[363221445,1748628638078,-845.99958795,0.0002096,2]
[363221447,1748628638087,-885.08,0.00020961,2]
[363221449,1748628638096,-740.82,0.00020986,2]
[363221451,1748628638106,-300.0,0.0002099,2]
[363221453,1748628638116,-1393.50041205,0.00020991,2]
[363221455,1748628638127,-1214.67,0.00020991,2]
[363221606,1748628640729,-6711.63855774,0.00020991,2]
[363221607,1748628640738,-400.0,0.00021,2]
[363221608,1748628640747,-1033.95,0.00021001,2]
[363221609,1748628640757,-2577.61,0.00021001,2]
[363221610,1748628640767,-162.380719,0.00021095,2]
[363221611,1748628640775,-303.96,0.00021234,2]
[363221612,1748628640785,-151.0,0.00021335,2]
[363221613,1748628640794,-9216.856,0.00021335,2]
[363221614,1748628640803,-207.4,0.00021335,2]
[363221615,1748628640812,-1000.0,0.00021346,2]
[363221616,1748628640823,-174.9952,0.00021346,2]
[363221617,1748628640831,-2500.0,0.00021346,2]
[363221618,1748628640841,-5285.3554,0.00021346,2]
[363221619,1748628640850,-150.99,0.00021348,2]
[363221620,1748628640860,-9999.99,0.00021348,2]
[363221621,1748628640870,-2142.6038566,0.00021348,2]
[363221622,1748628640895,-2613.89961372,0.00021348,2]
[363221623,1748628640946,-521.97186,0.00021348,2]
[363221624,1748628641079,-172.0,0.00021,2]
[363221625,1748628641089,-4721.51466968,0.00021348,2]
[363221626,1748628641099,-999.99,0.00021348,2]
[363221627,1748628641110,-9999.99,0.00021348,2]
[363221628,1748628641120,-150.99,0.00021348,2]
[363221629,1748628641130,-160.95402894,0.00021349,2]
[363221630,1748628641140,-565.27464934,0.00021349,2]
[363221631,1748628641150,-200.76,0.00021369,2]
[363221632,1748628641159,-1904.0,0.0002137,2]
[363221633,1748628641169,-200.0,0.00021387,2]
[363221634,1748628641179,-6366.76479462,0.0002139,2]
[363221635,1748628641189,-177.44,0.00021423,2]
[363221636,1748628641203,-150.0,0.00021428,7]
[363221637,1748628641212,-151.0,0.00021433,2]
[363221638,1748628641222,-300.0,0.00021433,2]
[363221639,1748628641231,-156.59142641,0.00021433,2]
[363221640,1748628641241,-300.0,0.00021433,2]
[363221641,1748628641251,-300.0,0.00021433,2]
[363221642,1748628641260,-300.0,0.00021433,2]
[363221643,1748628641270,-300.0,0.00021433,2]
[363221644,1748628641280,-300.0,0.00021433,2]
[363221645,1748628641289,-300.0,0.00021433,2]
[363221646,1748628641298,-668.65185757,0.00021433,2]
[363221647,1748628641307,-300.0,0.00021433,2]
[363221648,1748628641317,-300.0,0.00021433,2]
[363221649,1748628641326,-300.0,0.00021433,2]
[363221650,1748628641336,-230.09911732,0.00021433,2]
[363221651,1748628641345,-300.0,0.00021433,2]
[363221652,1748628641354,-300.0,0.00021433,2]
[363221653,1748628641364,-300.0,0.00021433,2]
[363221654,1748628641373,-300.0,0.00021433,2]
[363221655,1748628641383,-300.0,0.00021433,2]
[363221656,1748628641392,-300.0,0.00021433,2]
[363221657,1748628641402,-151.0,0.00021433,2]
[363221658,1748628641412,-300.0,0.00021433,2]
[363221659,1748628641422,-1115.157653,0.00021433,2]
[363221660,1748628641431,-155529.72,0.00021446,2]
[363221661,1748628641441,-1500.0,0.00021449,2]
[363221662,1748628641450,-302.02,0.00021487,2]
[363221663,1748628641459,-302.11,0.00021487,2]
[363221664,1748628641469,-304.83,0.00021487,2]
[363221665,1748628641479,-301.38,0.00021488,2]
[363221666,1748628641488,-280.48,0.00021504,2]
[363221667,1748628641497,-500.0,0.00021562,2]
[363221668,1748628641507,-250.0,0.00021618,2]
[363221669,1748628641516,-168.3888056,0.00021643,2]
[363221670,1748628641526,-740.82,0.00021773,2]
[363221671,1748628641535,-200.0,0.00021888,2]
[363221672,1748628641545,-5735.58686215,0.000219,2]
[363221673,1748628641555,-5735.58686212,0.000219,2]
[363221674,1748628641564,-5735.58686212,0.000219,2]
[363221675,1748628641575,-5158.7859435,0.000219,6]
[363221676,1748628641585,-5735.58686212,0.0002191,2]
[363221677,1748628641594,-151.0,0.00021981,2]
[363221678,1748628641603,-160.0,0.00022,2]
[363221679,1748628641613,-151.0,0.00022,2]
[363221680,1748628641623,-250.0,0.00022004,2]
[363221681,1748628641633,-941.0,0.00022062,2]
[363221682,1748628641642,-5735.58686212,0.00022097,2]
[363221683,1748628641652,-160.95402888,0.00022137,2]
[363221684,1748628641661,-183.674,0.00022191,2]
[363221685,1748628641671,-4610.883,0.00022191,2]
[363221686,1748628641680,-174.61919141,0.00022191,2]
[363221688,1748628641690,-160.0,0.00022192,7]
[363221690,1748628641699,-151.0,0.00022192,7]
[363221692,1748628641708,-167.2481227,0.00022198,2]
[363221694,1748628641718,-303.57,0.00022263,2]
[363221696,1748628641727,-303.5,0.00022263,2]
[363221698,1748628641737,-302.15,0.00022263,2]
[363221700,1748628641746,-300.36,0.00022263,2]
[363221702,1748628641755,-5735.58686212,0.00022283,2]
[363221704,1748628641765,-1507.988674,0.00022284,3]
[363221706,1748628641774,-1314.0,0.00022298,2]
[363221708,1748628641784,-634.0,0.00022298,2]
[363221710,1748628641793,-801.0,0.00022298,2]
[363221712,1748628641803,-1466.0,0.00022298,2]
[363221714,1748628641813,-924.0,0.00022298,2]
[363221716,1748628641824,-556.0,0.00022298,2]
[363221718,1748628641833,-1268.0,0.00022298,2]
[363221720,1748628641844,-588.0,0.00022298,2]
[363221722,1748628641854,-1155.0,0.00022298,2]
[363221724,1748628641863,-150.0,0.00022315,2]
[363221726,1748628641874,-301.74,0.00022337,2]
[363221728,1748628641885,-301.7,0.00022337,2]
[363221730,1748628641895,-305.03,0.00022337,2]
[363221732,1748628641904,-304.68,0.00022337,2]
[363221734,1748628641914,-300.75,0.00022337,2]
[363221736,1748628641923,-150.0,0.00022398,2]
[363221738,1748628641932,-150.0,0.00022398,2]
[363221740,1748628641942,-807.3,0.000224,2]
[363221742,1748628641951,-1000.0,0.00022431,2]
[363221744,1748628641961,-1053.44251006,0.00022436,10]
[363221746,1748628641973,-41328.2510635,0.00022437,2]
[363221748,1748628641982,-150.0,0.00022441,2]
[363221750,1748628641991,-6929.0,0.00022442,2]
[363221752,1748628642001,-848.0,0.00022442,2]
[363221754,1748628642011,-180.631,0.00022442,2]
[363221756,1748628642020,-284.369,0.00022442,2]
[363221758,1748628642029,-4068.0,0.00022442,2]
[363221760,1748628642038,-882.0,0.00022442,2]
[363221762,1748628642047,-305.35,0.00022445,2]
[363221764,1748628642057,-150.0,0.00022449,2]
[363221766,1748628642067,-150.0,0.00022451,2]
[363221768,1748628642076,-150.0,0.0002246,2]
[363221770,1748628642085,-5735.58686212,0.0002247,2]
[363221772,1748628642094,-150.0,0.0002248,2]
[363221774,1748628642104,-1000.0,0.00022483,2]
[363221776,1748628642113,-150.0,0.0002249,2]
[363221778,1748628642122,-150.0,0.00022504,2]
[363221780,1748628642131,-150.0,0.00022505,2]
[363221782,1748628642140,-304.06,0.0002251,2]
[363221784,1748628642149,-302.54,0.0002251,2]
[363221786,1748628642159,-300.72,0.0002251,2]
[363221788,1748628642167,-304.01,0.0002251,2]
[363221790,1748628642177,-150.0,0.00022515,2]
[363221792,1748628642186,-150.0,0.00022516,2]
[363221795,1748628642198,-150.0,0.00022516,2]
[363221797,1748628642207,-200.0,0.00022519,2]
[363221799,1748628642216,-150.0,0.00022522,2]
[363221801,1748628642226,-150.0,0.00022525,2]
[363221803,1748628642235,-151.0,0.00022529,2]
[363221805,1748628642244,-1000.0,0.0002253,2]
[363221807,1748628642252,-155.6316338,0.00022539,2]
[363221809,1748628642262,-150.0,0.0002254,2]
[363221811,1748628642271,-150.0,0.00022546,2]
[363221813,1748628642281,-150.0,0.00022547,2]
[363221815,1748628642291,-1000.0,0.00022547,2]
[363221817,1748628642300,-150.0,0.00022552,2]
[363221819,1748628642309,-150.0,0.00022553,2]
[363221821,1748628642319,-152.43437013,0.00022556,2]
[363221823,1748628642328,-191.79804659,0.00022559,2]
[363221825,1748628642339,-740.82,0.0002256,2]
[363221827,1748628642348,-150.0,0.0002257,2]
[363221829,1748628642357,-150.0,0.00022573,2]
[363221831,1748628642367,-150.0,0.00022577,2]
[363221833,1748628642378,-150.0,0.00022582,2]
[363221835,1748628642387,-150.0,0.00022584,2]
[363221837,1748628642396,-150.0,0.00022586,2]
[363221839,1748628642405,-150.0,0.00022591,2]
[363221841,1748628642415,-150.0,0.00022598,2]
[363221843,1748628642426,-150.0,0.000226,2]
[363221845,1748628642436,-6623.3211778,0.000226,2]
[363221847,1748628642445,-2348.0,0.000226,3]
[363221849,1748628642454,-1000.0,0.00022602,2]
[363221851,1748628642463,-150.0,0.00022602,2]
[363221853,1748628642473,-1000.0,0.00022612,2]
[363221855,1748628642482,-150.0,0.00022618,2]
[363221857,1748628642492,-1000.0,0.00022623,2]
[363221859,1748628642502,-5158.78594341,0.00022624,7]
[363221861,1748628642511,-150.0,0.00022632,2]
[363221863,1748628642520,-150.0,0.00022632,2]
[363221865,1748628642530,-267.54074092,0.00022635,2]
[363221867,1748628642540,-5000.0,0.00022635,2]
[363221869,1748628642549,-727.3196,0.00022639,2]
[363221871,1748628642558,-500.0,0.00022639,2]
[363221873,1748628642570,-36005.4302,0.00022639,2]
[363221875,1748628642580,-1000.0,0.00022639,2]
[363221877,1748628642590,-500.0,0.00022649,2]
[363221879,1748628642599,-228.66367406,0.00022649,2]
[363221881,1748628642608,-500.0,0.00022649,2]
[363221883,1748628642618,-500.0,0.00022649,2]
[363221885,1748628642628,-807.9867167,0.00022649,2]
[363221887,1748628642638,-241.63499245,0.00022649,2]
[363221889,1748628642648,-500.0,0.00022649,2]
[363221891,1748628642657,-500.0,0.00022649,2]
[363221893,1748628642667,-500.0,0.00022649,2]
[363221895,1748628642677,-807.9867167,0.00022649,2]
[363221897,1748628642686,-271.18188176,0.00022649,2]
[363221899,1748628642695,-500.0,0.00022649,2]
[363221901,1748628642704,-500.0,0.00022649,2]
[363221903,1748628642714,-500.0,0.00022649,2]
[363221905,1748628642723,-807.9867167,0.00022649,2]
[363221907,1748628642733,-500.0,0.00022649,2]
[363221909,1748628642742,-500.0,0.00022649,2]
[363221911,1748628642753,-445.0498048,0.00022649,2]
[363221913,1748628642763,-807.9867167,0.00022649,2]
[363221915,1748628642773,-350.48163973,0.00022649,2]
[363221917,1748628642783,-500.0,0.00022649,2]
[363221920,1748628642794,-807.9867167,0.00022649,2]
[363221921,1748628642803,-194.33599528,0.00022649,2]
[363221923,1748628642813,-807.9867167,0.00022649,2]
[363221925,1748628642825,-500.0,0.00022649,2]
[363221927,1748628642835,-807.9867167,0.00022649,2]
[363221929,1748628642845,-807.9867167,0.00022649,2]
[363221932,1748628642854,-500.0,0.00022649,2]
[363221934,1748628642864,-807.9867167,0.00022649,2]
[363221936,1748628642874,-594.23472309,0.00022649,2]
[363221938,1748628642884,-807.9867167,0.00022649,2]
[363221940,1748628642894,-807.9867167,0.00022649,2]
[363221942,1748628642903,-500.0,0.00022649,2]
[363221945,1748628642913,-807.9867167,0.00022649,2]
[363221947,1748628642923,-500.0,0.00022649,2]
[363221950,1748628642932,-807.9867167,0.00022649,2]
[363221953,1748628642942,-500.0,0.00022649,2]
[363221955,1748628642951,-807.9867167,0.00022649,2]
[363221957,1748628642960,-807.9867167,0.00022649,2]
[363221959,1748628642969,-500.0,0.00022649,2]
[363221961,1748628642978,-807.9867167,0.00022649,2]
[363221963,1748628642987,-807.9867167,0.00022649,2]
[363221965,1748628642997,-807.9867167,0.00022649,2]
[363221967,1748628643007,-500.0,0.00022649,2]
[363221969,1748628643016,-807.9867167,0.00022649,2]
[363221971,1748628643025,-807.9867167,0.00022649,2]
[363221973,1748628643035,-807.9867167,0.00022649,2]
[363221976,1748628643045,-807.9867167,0.00022649,2]
[363221977,1748628643057,-807.9867167,0.00022649,2]
[363221978,1748628643066,-807.9867167,0.00022649,2]
[363221979,1748628643076,-807.9867167,0.00022649,2]
[363221980,1748628643085,-807.9867167,0.00022649,2]
[363221981,1748628643095,-807.9867167,0.00022649,2]
[363221982,1748628643105,-807.9867167,0.00022649,2]
[363221983,1748628643115,-807.9867167,0.00022649,2]
[363221984,1748628643125,-807.9867167,0.00022649,2]
[363221985,1748628643135,-807.9867167,0.00022649,2]
[363221986,1748628643145,-807.9867167,0.00022649,2]
[363221987,1748628643154,-807.9867167,0.00022649,2]
[363221989,1748628643164,-807.9867167,0.00022649,2]
[363221991,1748628643174,-807.9867167,0.00022649,2]
[363221993,1748628643183,-807.9867167,0.00022649,2]
[363221995,1748628643193,-807.9867167,0.00022649,2]
[363221997,1748628643205,-807.9867167,0.00022649,2]
[363221999,1748628643214,-807.9867167,0.00022649,2]
[363222001,1748628643224,-807.9867167,0.00022649,2]
[363222003,1748628643233,-807.9867167,0.00022649,2]
[363222005,1748628643244,-807.9867167,0.00022649,2]
[363222007,1748628643254,-807.9867167,0.00022649,2]
[363222009,1748628643263,-807.9867167,0.00022649,2]
[363222011,1748628643274,-807.9867167,0.00022649,2]
[363222013,1748628643283,-807.9867167,0.00022649,2]
[363222015,1748628643293,-807.9867167,0.00022649,2]
[363222017,1748628643302,-807.9867167,0.00022649,2]
[363222019,1748628643311,-807.9867167,0.00022649,2]
[363222021,1748628643321,-807.9867167,0.00022649,2]
[363222023,1748628643331,-807.9867167,0.00022649,2]
[363222025,1748628643341,-807.9867167,0.00022649,2]
[363222027,1748628643351,-807.9867167,0.00022649,2]
[363222029,1748628643360,-807.9867167,0.00022649,2]
[363222031,1748628643369,-807.9867167,0.00022649,2]
[363222033,1748628643379,-807.9867167,0.00022649,2]
[363222035,1748628643388,-807.9867167,0.00022649,2]
[363222037,1748628643398,-807.9867167,0.00022649,2]
[363222039,1748628643408,-807.9867167,0.00022649,2]
[363222041,1748628643417,-807.9867167,0.00022649,2]
[363222043,1748628643427,-807.9867167,0.00022649,2]
[363222045,1748628643436,-807.9867167,0.00022649,2]
[363222047,1748628643445,-1178.01241727,0.00022649,2]
[363222049,1748628643455,-1178.01241727,0.00022649,2]
[363222051,1748628643464,-1178.01241727,0.00022649,2]
[363222053,1748628643474,-1178.01241727,0.00022649,2]
[363222055,1748628643483,-1178.01241727,0.00022649,2]
[363222057,1748628643493,-1178.01241727,0.00022649,2]
[363222059,1748628643502,-1178.01241727,0.00022649,2]
[363222061,1748628643511,-1178.01241727,0.00022649,2]
[363222063,1748628643521,-1178.01241727,0.00022649,2]
[363222065,1748628643531,-1178.01241727,0.00022649,2]
[363222067,1748628643540,-1178.01241727,0.00022649,2]
[363222069,1748628643550,-1178.01241727,0.00022649,2]
[363222071,1748628643561,-1178.01241727,0.00022649,2]
[363222073,1748628643572,-1178.01241727,0.00022649,2]
[363222075,1748628643582,-1178.01241727,0.00022649,2]
[363222077,1748628643591,-1178.01241727,0.00022649,2]
[363222079,1748628643601,-1178.01241727,0.00022649,2]
[363222081,1748628643611,-1178.01241727,0.00022649,2]
[363222083,1748628643620,-1178.01241727,0.00022649,2]
[363222085,1748628643631,-1178.01241727,0.00022649,2]
[363222087,1748628643641,-1178.01241727,0.00022649,2]
[363222089,1748628643650,-1178.01241727,0.00022649,2]
[363222091,1748628643660,-1178.01241727,0.00022649,2]
[363222093,1748628643669,-1178.01241727,0.00022649,2]
[363222095,1748628643678,-1178.01241727,0.00022649,2]
[363222097,1748628643688,-1178.01241727,0.00022649,2]
[363222099,1748628643697,-1178.01241727,0.00022649,2]
[363222101,1748628643706,-1178.01241725,0.00022649,2]
[363222103,1748628643716,-1178.01241724,0.00022649,2]
[363222105,1748628643725,-150.0,0.0002265,2]
[363222107,1748628643734,-207276.4684,0.00022651,2]
[363222109,1748628643744,-150.0,0.00022657,2]
[363222111,1748628643753,-5735.58686212,0.00022657,2]
[363222113,1748628643762,-1000.0,0.00022658,2]
[363222115,1748628643771,-1000.0,0.00022662,2]
[363222117,1748628643782,-1000.0,0.00022678,2]
[363222119,1748628643791,-810.0,0.0002269,2]
[363222121,1748628643800,-1000.0,0.0002269,2]
[363222123,1748628643810,-301.55,0.00022693,2]
[363222125,1748628643819,-302.61,0.00022693,2]
[363222127,1748628643828,-304.4,0.00022693,2]
[363222129,1748628643838,-301.15,0.00022693,2]
[363222131,1748628643847,-304.6,0.00022693,2]
[363222133,1748628643856,-302.42,0.00022693,2]
[363222135,1748628643866,-150.0,0.00022701,2]
[363222137,1748628643875,-150.0,0.00022703,2]
[363222139,1748628643885,-151.0,0.00022704,2]
[363222141,1748628643894,-215.0738,0.00022704,2]
[363222143,1748628643903,-150.0,0.00022709,2]
[363222145,1748628643913,-150.0,0.00022714,2]
[363222147,1748628643922,-150.0,0.00022715,2]
[363222149,1748628643931,-151.31088441,0.00022718,2]
[363222151,1748628643941,-150.0,0.00022721,2]
[363222153,1748628643950,-152.2,0.00022725,2]
[363222155,1748628643959,-289384.4125568,0.00022735,2]
[363222157,1748628643968,-22349.6452807,0.00022735,2]
[363222159,1748628643977,-800.0,0.00022739,8]
[363222160,1748628643987,-800.0,0.00022739,8]
[363222163,1748628643997,-800.0,0.00022739,8]
[363222165,1748628644007,-800.0,0.00022739,8]
[363222167,1748628644016,-800.0,0.00022739,8]
[363222169,1748628644025,-800.0,0.00022739,8]
[363222171,1748628644034,-800.0,0.00022739,8]
[363222173,1748628644044,-800.0,0.00022739,8]
[363222175,1748628644053,-800.0,0.00022739,8]
[363222177,1748628644062,-800.0,0.00022739,8]
[363222178,1748628644073,-800.0,0.00022739,8]
[363222181,1748628644083,-800.0,0.00022739,8]
[363222183,1748628644092,-800.0,0.00022739,8]
[363222185,1748628644102,-800.0,0.00022739,8]
[363222187,1748628644111,-800.0,0.00022739,8]
[363222189,1748628644120,-800.0,0.00022739,8]
[363222190,1748628644129,-800.0,0.00022739,8]
[363222192,1748628644139,-800.0,0.00022739,8]
[363222195,1748628644149,-800.0,0.00022739,8]
[363222196,1748628644159,-800.0,0.00022739,8]
[363222199,1748628644169,-500.0,0.00022739,2]
[363222201,1748628644179,-500.0,0.00022739,2]
[363222203,1748628644189,-500.0,0.00022739,2]
[363222205,1748628644202,-500.0,0.00022739,2]
[363222207,1748628644212,-500.0,0.00022739,2]
[363222209,1748628644221,-538.38964601,0.00022739,2]
[363222211,1748628644231,-200.76,0.00022739,2]
[363222213,1748628644241,-500.0,0.00022739,2]
[363222215,1748628644251,-150.0,0.00022739,2]
[363222217,1748628644260,-150.0,0.00022739,2]
[363222219,1748628644269,-150.0,0.00022739,2]
[363222221,1748628644280,-150.0,0.00022739,2]
[363222223,1748628644290,-150.0,0.00022739,2]
[363222225,1748628644300,-150.0,0.00022739,2]
[363222227,1748628644309,-150.0,0.00022739,2]
[363222229,1748628644319,-500.0,0.00022739,2]
[363222231,1748628644330,-500.0,0.00022739,2]
[363222233,1748628644340,-500.0,0.00022739,2]
[363222260,1748628644577,-150.0,0.00022739,2]
[363222262,1748628644586,-214.98789662,0.00022739,2]
[363222264,1748628644596,-619.47773,0.00022739,2]
[363222267,1748628644605,-181.08010149,0.00022739,2]
[363222269,1748628644614,-150.0,0.00022739,2]
[363222271,1748628644623,-150.0,0.00022739,2]
[363222273,1748628644633,-150.0,0.00022739,2]
[363222275,1748628644641,-500.0,0.00022739,2]
[363222277,1748628644650,-500.0,0.00022739,2]
[363222279,1748628644659,-150.0,0.00022739,2]
[363222281,1748628644670,-500.0,0.00022739,2]
[363222283,1748628644679,-150.0,0.00022739,2]
[363222285,1748628644689,-219.50125738,0.00022739,2]
[363222287,1748628644698,-150.0,0.00022739,2]
[363222290,1748628644713,-161.92060709,0.00022739,2]
[363222292,1748628644722,-500.0,0.00022739,2]
[363222294,1748628644732,-500.0,0.00022739,2]
[363222296,1748628644741,-10618.6190531,0.00022751,2]
[363222298,1748628644751,-1000.0,0.00022763,2]
[363222300,1748628644761,-500.0,0.00022766,2]
[363222302,1748628644771,-202.0271829,0.00022766,2]
[363222304,1748628644780,-150.0,0.00022766,2]
[363222306,1748628644789,-150.0,0.00022766,2]
[363222308,1748628644799,-150.0,0.00022766,2]
[363222310,1748628644809,-175.66529843,0.00022766,2]
[363222312,1748628644818,-500.0,0.00022766,2]
[363222314,1748628644828,-500.0,0.00022766,2]
[363222316,1748628644837,-500.0,0.00022766,2]
[363222318,1748628644846,-150.0,0.00022766,2]
[363222320,1748628644855,-150.0,0.00022766,2]
[363222322,1748628644865,-150.0,0.00022766,2]
[363222324,1748628644874,-500.0,0.00022766,2]
[363222326,1748628644884,-500.0,0.00022766,2]
[363222328,1748628644893,-150.0,0.00022766,2]
[363222330,1748628644903,-500.0,0.00022766,2]
[363222332,1748628644912,-150.0,0.00022766,2]
[363222334,1748628644922,-206.35575138,0.00022766,2]
[363222336,1748628644931,-500.0,0.00022766,2]
[363222338,1748628644941,-573.3190783,0.00022766,2]
[363222340,1748628644951,-500.0,0.00022773,2]
[363222342,1748628644960,-500.0,0.00022773,2]
[363222344,1748628644968,-500.0,0.00022773,2]
[363222346,1748628644977,-500.0,0.00022773,2]
[363222348,1748628644986,-500.0,0.00022773,2]
[363222350,1748628644996,-500.0,0.00022794,2]
[363222352,1748628645007,-200.0,0.00022794,2]
[363222354,1748628645017,-214.77093474,0.00022794,2]
[363222356,1748628645028,-150.0,0.00022794,2]
[363222358,1748628645037,-500.0,0.00022794,2]
[363222360,1748628645047,-167.31210447,0.00022794,2]
[363222361,1748628645056,-500.0,0.00022794,2]
[363222362,1748628645065,-150.0,0.00022794,2]
[363222363,1748628645076,-207.42952703,0.00022794,2]
[363222364,1748628645085,-209.67878308,0.00022794,2]
[363222365,1748628645095,-500.0,0.00022794,2]
[363222366,1748628645104,-500.0,0.00022794,2]
[363222367,1748628645114,-128.7763219,0.00022794,2]
[363222474,1748628646183,-30.40467306,0.00022794,2]
[363222476,1748628646195,-500.0,0.00022794,2]
[363222478,1748628646207,-150.0,0.00022794,2]
[363222480,1748628646219,-500.0,0.00022794,2]
[363222481,1748628646229,-119.59532694,0.000228,8]
[363222485,1748628646253,-80.40467306,0.000228,8]
[363222487,1748628646263,-156.587,0.00022802,2]
[363222489,1748628646274,-693.3919763,0.00022802,2]
[363222491,1748628646283,-500.0,0.00022821,2]
[363222493,1748628646293,-150.0,0.00022821,2]
[363222495,1748628646302,-500.0,0.00022821,2]